bitfinex-derivatives/quotes_ETHF0:USTF0_20220103
["timestamp","ask_amount","ask_price","bid_price","bid_amount"]
[1641233124046,3.005238,3764.8,3764.6,0.71037075]
[1641233125647,3.005238,3764.8,3764.6,7.075e-05]
[1641233128957,1.5,3764.7,3764.6,7.075e-05]
[1641233129157,1.729991,3764.7,3763.4,0.88939967]
[1641233129358,1.5,3763.7,3763.4,0.88939967]
[1641233129556,0.911357,3763.7,3763.4,0.88939967]
[1641233130158,0.229991,3763.6,3763.5,0.88885075]
[1641233130758,4.239571,3763.6,3763.5,0.88885075]
[1641233134660,5.739571,3763.6,3763.5,0.88885075]
[1641233134860,4.239571,3763.6,3762.5,0.88939967]
[1641233135060,1.5,3763.5,3762.5,0.88939967]
[1641233135261,1.5,3763.5,3762.6,0.68115339]
[1641233136863,2.00479,3762.7,3762.6,0.68115339]
[1641233137066,2.234781,3762.7,3762.6,0.68115339]
[1641233139172,2.234781,3762.7,3762.1,31.9844]
[1641233139173,2.906381,3762.7,3762.1,31.9844]
[1641233139469,2.906381,3762.7,3761.9,0.88939967]
[1641233139672,22.78066181,3762.0,3761.9,0.88939967]
[1641233139870,23.01065281,3762.0,3761.9,0.88939967]
[1641233140069,23.01065281,3762.0,3761.6,0.88939967]
[1641233140270,22.78066181,3762.0,3761.9,1.192982]
[1641233140670,2.00479,3762.7,3761.9,1.192982]
[1641233140871,2.00479,3762.0,3761.9,1.192982]
[1641233142375,1.7903917,3764.8,3761.9,2.692982]
[1641233142576,32.22910624,3764.4,3762.6,1.5]
[1641233142773,32.22910624,3764.4,3762.7,0.128157]
[1641233142975,0.128157,3763.3,3762.6,2.58759]
[1641233143377,2.00479,3763.5,3762.6,4.08759]
[1641233143577,2.00479,3763.5,3762.7,1.27768133]
[1641233144682,2.00479,3763.5,3762.8,0.128157]
[1641233145182,2.00479,3763.5,3763.1,1.5]
[1641233145380,2.00479,3763.5,3762.8,0.128157]
[1641233145580,2.00479,3763.5,3763.3,1.5]
[1641233145780,2.00479,3763.5,3763.3,0.7582]
[1641233146182,2.00479,3763.5,3763.4,0.66868732]
[1641233147185,2.234781,3763.5,3763.4,0.66868732]
[1641233147382,2.00479,3763.5,3763.4,0.66868732]
[1641233147889,0.95585841,3766.3,3763.4,2.73388732]
[1641233148084,62.4868,3765.9,3764.2,1.5]
[1641233148286,62.4868,3765.9,3764.2,2.3266]
[1641233148683,62.4868,3765.9,3764.2,0.8266]
[1641233148885,62.4868,3765.9,3764.8,3.50479]
[1641233148886,2.00479,3765.6,3764.8,3.50479]
[1641233149086,2.00479,3765.6,3764.8,3.632947]
[1641233149285,0.128157,3765.5,3764.8,3.632947]
[1641233149886,0.128157,3765.5,3764.9,1.24154544]
[1641233154990,2.00479,3765.0,3764.9,1.24154544]
[1641233155292,2.919281,3765.0,3764.9,1.24154544]
[1641233156895,2.919281,3765.0,3764.9,4.544e-05]
[1641233157096,2.919281,3765.0,3764.0,2.00479]
[1641233157496,1.5,3764.7,3764.0,2.00479]
[1641233157695,0.128157,3764.6,3764.0,2.00479]
[1641233157896,0.128157,3764.6,3764.1,1.12646939]
[1641233158896,2.00479,3764.5,3764.1,1.12646939]
[1641233166701,1.32820293,3764.3,3764.1,1.12646939]
[1641233167003,0.79704412,3764.0,3762.8,5.429]
[1641233167203,1.5,3763.7,3762.8,5.429]
[1641233167401,0.79716875,3763.4,3762.8,5.429]
[1641233167601,0.79716875,3763.4,3762.2,0.88939967]
[1641233168001,1.5,3763.3,3762.2,0.88939967]
[1641233168203,12.93,3763.3,3762.2,0.88939967]
[1641233168401,11.43,3763.3,3762.2,2.17543945]
[1641233168603,0.79716875,3763.4,3762.2,1.28603978]
[1641233169101,2.00479,3762.6,3762.2,1.28603978]
[1641233169705,2.132947,3762.6,3762.2,1.28603978]
[1641233169904,2.00479,3762.6,3762.2,1.28603978]
[1641233173508,2.00479,3762.4,3762.2,1.28603978]
[1641233173808,2.234781,3762.4,3762.2,1.28603978]
[1641233174107,2.00479,3762.4,3762.2,1.28603978]
[1641233175107,2.234781,3762.4,3762.2,1.28603978]
[1641233176510,2.00479,3762.4,3762.2,1.28603978]
[1641233177413,0.229991,3762.3,3762.2,1.28603978]
[1641233177612,2.00479,3762.4,3762.2,1.28603978]
[1641233178316,0.229991,3762.3,3762.2,1.28603978]
[1641233179713,2.234781,3762.3,3762.2,1.28603978]
[1641233181018,2.00479,3762.3,3762.2,1.28603978]
[1641233181218,2.234781,3762.3,3762.2,1.28603978]
[1641233183219,2.00479,3762.3,3762.2,1.28603978]
[1641233183422,2.234781,3762.3,3762.2,1.28603978]
[1641233183822,2.00479,3762.3,3762.2,1.28603978]
[1641233184419,0.20607926,3762.3,3762.2,1.28603978]
[1641233185420,0.43607026,3762.3,3762.2,1.28603978]
[1641233185819,0.20607926,3762.3,3762.2,1.28603978]
[1641233186219,0.43607026,3762.3,3762.2,1.28603978]
[1641233186419,0.20607926,3762.3,3762.2,1.28603978]
[1641233187220,0.43607026,3762.3,3762.2,1.28603978]
[1641233188022,0.20607926,3762.3,3762.2,1.28603978]
[1641233189322,0.43607026,3762.3,3762.2,1.28603978]
[1641233189724,0.20607926,3762.3,3762.2,1.28603978]
[1641233191026,0.43607026,3762.3,3762.2,1.28603978]
[1641233191232,0.20607926,3762.3,3762.2,1.28603978]
[1641233192628,0.43607026,3762.3,3762.2,1.28603978]
[1641233193129,0.20607926,3762.3,3762.2,1.28603978]
[1641233193428,0.43607026,3762.3,3762.2,1.28603978]
[1641233194128,1.05237026,3762.3,3762.2,1.28603978]
[1641233195530,0.82237926,3762.3,3762.2,1.28603978]
[1641233195830,1.05237026,3762.3,3762.2,1.28603978]
[1641233198933,0.82237926,3762.3,3762.2,1.28603978]
[1641233200040,1.05237026,3762.3,3762.2,1.28603978]
[1641233202040,0.82237926,3762.3,3762.2,1.28603978]
[1641233202240,1.05237026,3762.3,3762.2,1.28603978]
[1641233202538,1.05237026,3762.3,3762.2,2.27759664]
[1641233204440,1.05237026,3762.3,3762.2,0.99155686]
[1641233204640,1.05237026,3762.3,3761.3,9.11612367]
[1641233204941,1.5,3761.9,3761.3,3.29263756]
[1641233205143,1.5,3761.9,3760.5,31.3024]
[1641233205144,0.128157,3761.8,3761.4,2.99410618]
[1641233205340,0.79752854,3761.7,3761.4,2.99410618]
[1641233205541,0.229991,3761.6,3761.5,0.94141703]
[1641233205942,13.664781,3761.6,3761.5,0.94141703]
[1641233206446,13.664781,3761.6,3761.5,1.703e-05]
[1641233206641,15.164781,3761.6,3761.5,1.703e-05]
[1641233206841,2.234781,3761.6,3761.5,1.703e-05]
[1641233209846,2.47458917,3761.6,3761.5,1.703e-05]
[1641233210848,3.66679541,3761.6,3761.5,1.703e-05]
[1641233211652,2.47458917,3761.6,3761.5,1.703e-05]
[1641233213051,3.66679541,3761.6,3761.5,1.703e-05]
[1641233213954,2.47458917,3761.6,3761.5,1.703e-05]
[1641233218360,0.46979917,3761.6,3761.5,1.703e-05]
[1641233219660,4.47937917,3761.6,3761.5,1.703e-05]
[1641233221767,5.67158541,3761.6,3761.5,1.703e-05]
[1641233222966,4.47937917,3761.6,3761.5,1.703e-05]
[1641233223867,5.66602538,3761.6,3761.5,1.703e-05]
[1641233226673,4.47937917,3761.6,3761.5,1.703e-05]
[1641233231380,4.239571,3761.6,3761.5,1.703e-05]
[1641233233080,15.669571,3761.6,3761.5,1.703e-05]
[1641233233481,2.19901671,3761.5,3760.8,0.8985308]
[1641233233680,11.43,3761.4,3760.6,0.8985308]
[1641233234081,2.00479,3761.0,3760.6,0.8985308]
[1641233234280,2.67589,3761.0,3760.6,0.8985308]
[1641233234480,0.128157,3760.9,3760.6,0.8985308]
[1641233234679,0.128157,3760.9,3760.7,0.85054447]
[1641233234880,0.229991,3760.8,3760.7,0.85054447]
[1641233235982,2.234781,3760.8,3760.7,0.85054447]
[1641233238789,15.164781,3760.8,3760.7,0.85054447]
[1641233238986,15.164781,3760.8,3760.1,1.09703602]
[1641233239287,12.93,3760.5,3760.1,1.09703602]
[1641233239485,1.5,3760.3,3760.1,1.09703602]
[1641233239685,32.37626856,3760.2,3760.1,1.09703602]
[1641233239886,46.02656856,3760.2,3760.1,1.09703602]
[1641233240089,48.03135856,3760.2,3759.7,0.8985308]
[1641233240292,1.5,3760.0,3759.7,0.5496308]
[1641233240491,14.03089164,3759.8,3759.7,0.5496308]
[1641233240792,15.53089164,3759.8,3759.7,0.5496308]
[1641233240994,4.10089164,3759.8,3759.5,0.86570194]
[1641233241493,0.229991,3759.7,3759.5,0.86570194]
[1641233242094,2.00479,3759.6,3759.5,0.86570194]
[1641233246695,13.43479,3759.6,3759.5,0.86570194]
[1641233247195,15.79625523,3759.6,3759.5,0.86570194]
[1641233249601,16.52085523,3759.6,3759.5,0.86570194]
[1641233251201,16.92365523,3759.6,3759.5,0.86570194]
[1641233252302,2.22063614,3759.2,3758.1,31.5827]
[1641233252503,0.128157,3759.1,3758.1,31.5827]
[1641233253504,0.128157,3759.1,3758.2,0.84266474]
[1641233254305,4.00958,3758.3,3758.2,0.84266474]
[1641233254806,4.367728,3758.3,3758.2,0.84266474]
[1641233255007,4.137737,3758.3,3758.2,0.84266474]
[1641233255406,4.00958,3758.3,3758.2,0.84266474]
[1641233255709,4.239571,3758.3,3758.2,0.84266474]
[1641233255905,4.00958,3758.3,3758.2,0.84266474]
[1641233256807,4.239571,3758.3,3758.2,0.84266474]
[1641233257408,4.00958,3758.3,3758.2,0.84266474]
[1641233257807,0.128157,3759.0,3758.2,0.84266474]
[1641233258008,2.17221967,3759.1,3758.2,0.84266474]
[1641233258210,2.00479,3758.7,3758.2,0.84266474]
[1641233259213,1.5,3758.3,3757.0,32.86311417]
[1641233259409,1.5,3758.1,3757.0,32.86311417]
[1641233260011,1.5,3758.1,3757.3,2.99503287]
[1641233260212,2.00479,3757.9,3757.3,2.99503287]
[1641233260410,2.58109,3757.9,3757.3,2.99503287]
[1641233260614,4.08109,3757.9,3757.3,2.99503287]
[1641233260818,1.5,3757.7,3757.3,2.99503287]
[1641233261414,2.58109,3757.9,3757.3,2.99503287]
[1641233261618,1.5,3757.5,3757.3,2.99503287]
[1641233261818,0.229991,3757.4,3757.1,2.75512799]
[1641233262219,0.229991,3757.4,3757.2,1.20393943]
[1641233262417,1.5,3757.3,3757.2,1.20393943]
[1641233263018,0.229991,3757.4,3757.2,1.20393943]
[1641233263220,0.30721312,3757.3,3757.2,1.20393943]
[1641233264821,1.49385933,3757.3,3757.2,1.20393943]
[1641233265020,1.49385933,3757.3,3757.2,2.34012689]
[1641233265422,24.3311466,3757.3,3757.2,2.34012689]
[1641233266626,23.14450039,3757.3,3757.2,2.34012689]
[1641233267928,23.14450039,3757.3,3757.2,1.13618746]
[1641233268329,22.83728727,3757.3,3757.2,1.13618746]
[1641233275447,0.128157,3757.2,3756.2,30.9332]
[1641233275648,11.43,3757.0,3756.2,30.9332]
[1641233275847,2.3823289,3757.1,3756.2,30.9332]
[1641233276047,2.3823289,3757.1,3756.3,0.128157]
[1641233276448,2.00479,3756.9,3756.4,1.32522538]
[1641233281752,1.33088628,3756.7,3756.4,1.32522538]
[1641233281952,0.229991,3756.6,3756.4,1.32522538]
[1641233282354,2.00479,3756.9,3756.4,1.32522538]
[1641233282552,2.00479,3756.9,3756.4,2.06712538]
[1641233283356,2.132947,3756.9,3756.4,2.06712538]
[1641233284357,0.128157,3756.9,3756.4,4.07191538]
[1641233284560,0.128157,3756.9,3756.4,3.37901538]
[1641233284961,0.128157,3756.9,3756.4,1.37422538]
[1641233285159,0.128157,3756.9,3756.4,0.63232538]
[1641233286460,2.00479,3756.5,3756.4,0.63232538]
[1641233287065,2.234781,3756.5,3756.4,0.63232538]
[1641233289364,2.00479,3756.5,3756.4,0.63232538]
[1641233289562,24.22731783,3757.3,3756.4,2.13232538]
[1641233289764,24.22731783,3757.3,3756.4,2.69122538]
[1641233289964,0.128157,3757.2,3756.4,2.69122538]
[1641233290365,0.128157,3757.2,3756.4,4.69601538]
[1641233290865,0.128157,3757.2,3756.4,3.19601538]
[1641233291268,0.128157,3757.2,3756.4,2.63711538]
[1641233291465,11.558157,3757.2,3756.4,2.63711538]
[1641233291667,1.33074105,3757.1,3756.4,2.63711538]
[1641233292066,11.558157,3757.2,3756.4,2.63711538]
[1641233292267,0.15017599,3757.0,3756.4,2.63711538]
[1641233292470,2.15496599,3757.0,3756.4,2.63711538]
[1641233292669,2.00479,3757.0,3756.4,2.63711538]
[1641233292868,1.48722517,3756.5,3756.4,3.51997347]
[1641233293067,1.71721617,3756.5,3756.4,3.51997347]
[1641233293867,0.229991,3756.5,3756.4,3.51997347]
[1641233294070,1.7903917,3756.6,3756.4,2.63711538]
[1641233294271,0.229991,3756.5,3756.4,2.63711538]
[1641233295068,0.5682672,3756.5,3756.4,2.63711538]
[1641233296874,0.3382762,3756.5,3756.4,2.63711538]
[1641233297073,0.5682672,3756.5,3756.4,2.63711538]
[1641233297671,0.3382762,3756.5,3756.4,2.63711538]
[1641233297873,0.5682672,3756.5,3756.4,2.63711538]
[1641233298575,0.5682672,3756.5,3756.4,2.22931538]
[1641233300579,2.3586589,3756.5,3756.4,2.22931538]
[1641233301179,0.5682672,3756.5,3756.4,2.22931538]
[1641233301381,0.5682672,3756.5,3756.0,0.88285809]
[1641233301580,0.128157,3756.4,3756.0,0.88285809]
[1641233301783,1.628157,3756.4,3756.0,0.88285809]
[1641233301982,1.628157,3756.4,3755.4,1.47142241]
[1641233301983,0.35165531,3756.0,3755.4,1.47142241]
[1641233302180,0.5321,3756.0,3755.4,1.47142241]
[1641233302480,2.00479,3755.5,3755.4,1.47142241]
[1641233302680,2.234781,3755.5,3755.4,1.47142241]
[1641233303481,3.84820665,3755.5,3754.8,1.47142241]
[1641233303882,1.33134342,3755.4,3754.8,1.47142241]
[1641233304283,1.33134342,3755.4,3754.8,0.88622241]
[1641233304485,2.00479,3754.9,3754.8,0.88622241]
[1641233304683,2.835381,3754.9,3754.8,0.88622241]
[1641233305184,2.835381,3754.9,3754.7,0.7042346]
[1641233305385,2.835381,3754.9,3753.6,30.0493]
[1641233305783,2.835381,3754.9,3753.9,1.30825443]
[1641233306084,1.33155615,3754.8,3753.9,1.30825443]
[1641233306283,0.128157,3754.7,3754.0,0.128157]
[1641233306486,2.00479,3754.4,3754.0,0.128157]
[1641233306686,2.00479,3754.4,3754.0,5.7e-05]
[1641233306884,1.78325444,3754.7,3754.0,5.7e-05]
[1641233307686,0.3382762,3754.3,3754.0,5.7e-05]
[1641233308293,0.229991,3754.2,3753.9,1.30825443]
[1641233308489,0.229991,3754.2,3753.9,3.31304443]
[1641233308691,0.229991,3754.2,3753.9,1.30825443]
[1641233310093,33.10024479,3754.0,3753.9,1.30825443]
[1641233310492,33.71584479,3754.0,3753.9,1.30825443]
[1641233311394,33.86613399,3754.0,3753.9,1.30825443]
[1641233311796,34.20441019,3754.0,3753.9,1.30825443]
[1641233311994,34.9551948,3754.0,3753.9,1.30825443]
[1641233312394,34.20441019,3754.0,3753.9,1.30825443]
[1641233312596,33.86613399,3754.0,3753.9,1.30825443]
[1641233312896,33.86613399,3754.0,3753.9,0.90925443]
[1641233313398,36.49196731,3754.0,3753.9,0.90925443]
[1641233313597,37.24334166,3754.0,3753.5,2.00479]
[1641233314401,37.09305246,3754.0,3753.5,2.00479]
[1641233315001,37.09305246,3754.0,3753.6,0.70742311]
[1641233315802,0.40197612,3753.9,3753.6,0.70742311]
[1641233316002,2.93272396,3753.9,3753.6,0.70742311]
[1641233316203,0.229991,3753.8,3753.6,0.70742311]
[1641233317305,0.961191,3753.8,3753.6,0.70742311]
[1641233327319,6.28926376,3753.8,3753.6,0.70742311]
[1641233327520,7.6211888,3753.8,3753.6,0.70742311]
[1641233327726,0.1503159,3753.7,3753.6,0.70742311]
[1641233327920,11.43,3753.5,3752.8,31.13729]
[1641233328119,0.128157,3753.4,3752.8,31.13729]
[1641233328321,0.2784729,3753.4,3752.8,2.00479]
[1641233328621,0.2784729,3753.4,3752.6,1.91316652]
[1641233328622,2.00479,3753.3,3752.6,1.91316652]
[1641233329120,0.1503159,3753.2,3752.6,1.91316652]
[1641233330326,0.1503159,3753.2,3752.6,1.02773058]
[1641233330525,1.77714794,3752.9,3752.6,1.02773058]
[1641233330721,0.229991,3752.8,3752.6,1.02773058]
[1641233331323,0.39450588,3752.7,3752.6,1.02773058]
[1641233336527,1.77714794,3752.8,3752.6,1.02773058]
[1641233336728,1.77714794,3752.9,3752.6,1.02773058]
[1641233337228,0.229991,3752.8,3752.6,1.02773058]
[1641233337430,0.229991,3752.8,3752.5,0.88543594]
[1641233338030,1.77714794,3752.9,3752.5,0.88543594]
[1641233339029,1.48079773,3752.6,3752.5,0.88543594]
[1641233339230,1.71078873,3752.6,3752.5,0.88543594]
[1641233339529,1.48079773,3752.6,3752.5,0.88543594]
[1641233339930,1.87530361,3752.6,3752.5,0.88543594]
[1641233340134,2.10529461,3752.6,3752.5,0.88543594]
[1641233340332,1.87530361,3752.6,3752.5,2.08996117]
[1641233340732,1.48079773,3752.6,3752.5,2.08996117]
[1641233342732,1.71078873,3752.6,3752.5,2.08996117]
[1641233343135,1.48079773,3752.6,3752.5,2.08996117]
[1641233343633,1.71078873,3752.6,3752.5,2.08996117]
[1641233343933,1.87530361,3752.6,3752.5,2.08996117]
[1641233344336,1.87530361,3752.6,3752.5,2.62236117]
[1641233345434,1.48079773,3752.6,3752.5,2.62236117]
[1641233345636,1.71078873,3752.6,3752.5,2.62236117]
[1641233345834,1.48079773,3752.6,3752.5,2.62236117]
[1641233346234,1.48079773,3752.7,3752.5,2.62236117]
[1641233347736,1.48079773,3752.7,3752.6,0.88543594]
[1641233348436,1.71078873,3752.7,3752.6,0.88543594]
[1641233348636,0.229991,3752.7,3752.6,0.88543594]
[1641233348837,1.77714794,3752.9,3752.5,2.08996117]
[1641233349837,1.47971128,3752.7,3752.6,0.88543594]
[1641233350037,1.70970228,3752.7,3752.6,0.88543594]
[1641233350637,0.229991,3752.7,3752.6,0.88543594]
[1641233350840,0.229991,3752.7,3752.5,2.08996117]
[1641233351038,0.128157,3752.6,3752.5,2.08996117]
[1641233352138,2.00242189,3752.6,3752.5,2.08996117]
[1641233352941,1.87426489,3752.6,3752.5,2.08996117]
[1641233355145,1.87426489,3752.6,3752.5,3.58996117]
[1641233355344,1.77714794,3752.9,3752.5,3.58996117]
[1641233355546,1.77714794,3752.9,3752.8,1.5]
[1641233355850,2.22143492,3753.2,3752.8,1.5]
[1641233356144,2.22143492,3753.2,3752.5,2.80776117]
[1641233356145,2.22143492,3753.2,3753.0,1.5]
[1641233356544,2.22143492,3753.2,3753.1,1.19117115]
[1641233356743,2.22143492,3753.2,3753.1,3.19596115]
[1641233357144,2.96191323,3753.5,3753.1,4.08139709]
[1641233357346,2.22143492,3753.7,3753.4,1.5]
[1641233357547,2.22143492,3753.7,3753.4,2.0752]
[1641233357745,2.3350092,3753.9,3753.4,2.0752]
[1641233357946,2.3350092,3753.9,3753.8,1.5]
[1641233358146,2.3350092,3753.9,3753.4,0.5752]
[1641233358548,0.128157,3754.0,3753.4,0.88543594]
[1641233358747,0.128157,3754.0,3753.8,2.00479]
[1641233359051,0.229991,3753.9,3753.8,2.00479]
[1641233359251,0.38029005,3753.9,3753.8,2.00479]
[1641233360049,0.38029005,3753.9,3753.1,3.19596115]
[1641233360650,0.15029905,3753.8,3753.1,3.19596115]
[1641233362049,0.15029905,3753.8,3753.1,2.00479]
[1641233362950,30.7077225,3753.5,3753.1,2.00479]
[1641233364153,30.7077225,3753.5,3753.2,1.24489502]
[1641233364352,0.229991,3753.4,3753.2,1.24489502]
[1641233364955,1.70943259,3753.4,3753.2,1.24489502]
[1641233365157,30.7077225,3753.5,3753.2,1.24489502]
[1641233366157,1.70946564,3753.4,3753.2,1.24489502]
[1641233366657,1.47947464,3753.4,3753.2,1.24489502]
[1641233367058,32.18719714,3753.5,3753.2,1.24489502]
[1641233367961,0.229991,3753.4,3753.2,1.24489502]
[1641233369761,32.18719714,3753.5,3753.2,1.24489502]
[1641233370662,0.229991,3753.4,3753.2,1.24489502]
[1641233370862,32.18719714,3753.5,3753.2,1.24489502]
[1641233370863,30.7077225,3753.5,3753.3,0.90086661]
[1641233371964,30.7077225,3753.5,3753.2,2.14576163]
[1641233372764,30.7077225,3753.5,3753.3,0.90086661]
[1641233372965,31.89225876,3753.5,3753.3,0.90086661]
[1641233374566,31.89225876,3753.5,3753.4,0.90086661]
[1641233374968,1.18453626,3753.5,3753.4,0.90086661]
[1641233375167,1.77536956,3754.1,3753.4,0.90086661]
[1641233375367,1.77536956,3754.1,3753.8,1.5]
[1641233375567,1.77536956,3754.1,3753.8,2.0805]
[1641233376170,1.77536956,3754.1,3753.9,1.27077255]
[1641233377370,2.00479,3754.3,3753.9,1.27077255]
[1641233378171,2.00479,3754.3,3754.0,0.90152747]
[1641233378774,1.77536956,3754.4,3754.0,0.90152747]
[1641233379575,1.90352656,3754.5,3754.1,0.90152747]
[1641233380375,1.90352656,3754.5,3754.2,0.90152747]
[1641233380577,1.77536956,3754.6,3754.2,0.90152747]
[1641233381477,1.90352656,3754.6,3754.2,0.90152747]
[1641233381877,1.77536956,3754.6,3754.2,0.90152747]
[1641233384679,1.90352656,3754.6,3754.2,0.90152747]
[1641233384881,1.48399547,3754.4,3754.3,0.90152747]
[1641233385881,0.229991,3754.5,3754.3,0.90152747]
[1641233386179,0.229991,3754.5,3754.2,0.90152747]
[1641233386585,1.90352656,3754.6,3754.2,0.90152747]
[1641233386980,1.48305391,3754.3,3754.2,0.90152747]
[1641233387380,1.71304491,3754.3,3754.2,0.90152747]
[1641233387580,30.84889987,3754.3,3753.6,3.50725583]
[1641233387783,30.84889987,3754.3,3753.7,1.50246583]
[1641233387981,1.5,3754.2,3753.7,1.50246583]
[1641233388180,2.0803,3754.2,3753.7,1.50246583]
[1641233388981,2.0803,3754.2,3753.6,1.04309188]
[1641233389284,2.00479,3753.7,3753.6,1.04309188]
[1641233389480,2.234781,3753.7,3753.6,1.04309188]
[1641233389881,2.362938,3753.7,3753.6,1.04309188]
[1641233391885,4.17153339,3753.7,3753.6,1.04309188]
[1641233392784,3.81338539,3753.7,3753.6,1.04309188]
[1641233394184,2.33327853,3753.7,3753.6,1.04309188]
[1641233394787,2.56326953,3753.7,3753.6,1.04309188]
[1641233394987,2.33327853,3753.7,3753.6,1.04309188]
[1641233396289,3.51744933,3753.7,3753.6,1.04309188]
[1641233396689,3.74744033,3753.7,3753.6,1.04309188]
[1641233396890,3.51744933,3753.7,3753.6,1.04309188]
[1641233397689,3.74744033,3753.7,3753.6,1.04309188]
[1641233398291,3.51744933,3753.7,3753.6,1.04309188]
[1641233398792,3.74744033,3753.7,3753.6,1.04309188]
[1641233398993,3.51744933,3753.7,3753.6,1.04309188]
[1641233399694,3.74744033,3753.7,3753.6,1.04309188]
[1641233400098,3.51744933,3753.7,3753.6,1.04309188]
[1641233400296,2.33327853,3753.7,3753.6,1.04309188]
[1641233403001,2.56326953,3753.7,3753.6,1.04309188]
[1641233403202,0.55847953,3753.7,3753.6,1.04309188]
[1641233403403,0.32848853,3753.7,3753.6,1.04309188]
[1641233404303,0.229991,3753.7,3753.6,1.04309188]
[1641233404506,31.14064496,3754.3,3753.6,1.04309188]
[1641233404702,0.128157,3754.2,3753.6,1.04309188]
[1641233404904,31.14064496,3754.3,3753.6,1.04309188]
[1641233405508,0.32889436,3753.7,3753.6,1.04309188]
[1641233406612,1.18538352,3753.9,3753.6,1.04309188]
[1641233407713,0.229991,3753.8,3753.6,1.04309188]
[1641233407913,1.18538352,3753.9,3753.6,1.04309188]
[1641233408114,1.31354052,3753.9,3753.6,1.04309188]
[1641233408629,0.229991,3753.8,3753.6,1.04309188]
[1641233408815,0.981891,3753.8,3753.2,1.50085821]
[1641233409619,2.00479,3753.6,3753.2,2.36386579]
[1641233410019,2.00479,3753.6,3753.2,0.86300758]
[1641233410819,1.81101057,3753.5,3753.2,0.86300758]
[1641233411020,0.229991,3753.4,3752.5,1.50085821]
[1641233411225,1.028291,3753.4,3752.5,1.50085821]
[1641233411620,2.00479,3752.6,3752.5,1.50085821]
[1641233411821,2.234781,3752.6,3752.5,1.50085821]
[1641233412023,2.234781,3752.6,3752.3,1.50085821]
[1641233412223,2.00479,3752.6,3752.3,1.50085821]
[1641233412621,0.229991,3752.5,3752.3,1.50085821]
[1641233412920,2.00479,3752.6,3752.3,1.50085821]
[1641233413821,0.358148,3752.5,3752.3,1.50085821]
[1641233414021,0.950748,3752.5,3752.2,2.49234948]
[1641233414923,1.18529892,3752.3,3752.2,0.99149127]
[1641233415120,1.41528992,3752.3,3752.2,0.99149127]
[1641233416822,1.75142219,3752.3,3752.2,0.99149127]
[1641233419928,1.75142219,3752.3,3751.6,2.00479]
[1641233420127,1.75142219,3752.3,3751.7,0.99371419]
[1641233421527,0.33613227,3752.2,3751.7,0.99371419]
[1641233422729,1.18529892,3752.3,3751.7,0.99371419]
[1641233423929,1.52143119,3752.4,3751.7,0.99371419]
[1641233424129,1.52143119,3752.4,3751.9,1.5]
[1641233424329,1.52143119,3752.4,3751.9,2.037]
[1641233424629,1.52143119,3752.4,3751.9,0.537]
[1641233425229,1.18529892,3752.4,3751.9,0.537]
[1641233425432,1.18529892,3752.4,3752.0,1.50085821]
[1641233425631,2.00479,3752.6,3752.0,3.50564821]
[1641233425830,2.132947,3752.6,3752.0,3.50564821]
[1641233426031,2.00479,3752.6,3752.0,3.50564821]
[1641233427130,1.18529892,3752.9,3752.0,5.00564821]
[1641233427931,1.18529892,3752.9,3752.2,1.33173702]
[1641233428131,3.48688387,3753.2,3752.2,2.83173702]
[1641233428132,1.18529892,3753.0,3752.2,2.83173702]
[1641233428331,1.18529892,3753.0,3752.2,3.55259696]
[1641233428732,1.18529892,3753.0,3752.5,1.5]
[1641233429735,0.3586781,3753.1,3752.5,1.5]
[1641233430535,0.4868351,3753.1,3752.5,1.5]
[1641233431136,0.4868351,3753.1,3752.3,1.50085821]
[1641233431739,1.54397702,3753.0,3752.7,0.90044613]
[1641233431938,0.229991,3752.9,3752.7,0.90044613]
[1641233433144,1.18529892,3752.8,3752.5,0.90044613]
[1641233433344,0.229991,3752.7,3752.5,0.90044613]
[1641233433543,1.18529892,3752.8,3752.5,0.90044613]
[1641233433944,0.3586781,3752.8,3752.6,0.90044613]
[1641233435645,3.48688387,3753.2,3752.7,0.90044613]
[1641233435646,1.54397702,3753.0,3752.7,0.90044613]
[1641233437248,0.3586781,3753.1,3752.8,0.90044613]
[1641233437646,0.3586781,3753.1,3752.9,1.00832518]
[1641233438047,0.3586781,3753.1,3753.0,0.90044613]
[1641233439847,0.5886691,3753.1,3752.9,1.00832518]
[1641233440048,2.00479,3753.2,3752.9,1.00832518]
[1641233441348,2.00479,3753.2,3752.9,1.90870715]
[1641233441548,0.35711837,3753.1,3752.9,1.90870715]
[1641233442450,0.58710937,3753.1,3752.9,1.90870715]
[1641233442748,0.35711837,3753.1,3752.9,1.90870715]
[1641233442951,2.00479,3753.2,3752.9,1.00832518]
[1641233443650,2.00479,3753.2,3753.0,0.90035905]
[1641233444251,0.229991,3753.1,3753.0,0.90035905]
[1641233444452,2.00479,3753.2,3753.0,0.90035905]
[1641233445052,1.18529892,3753.3,3753.0,0.90035905]
[1641233445856,1.18529892,3753.3,3752.9,1.00832518]
[1641233446254,0.128157,3753.4,3752.9,1.00832518]
[1641233446454,0.35722216,3753.5,3752.9,1.00832518]
[1641233447757,0.35722216,3753.3,3753.1,0.90022036]
[1641233448556,0.229991,3753.2,3753.0,0.90022036]
[1641233448756,1.18529892,3753.4,3753.0,0.90022036]
[1641233450157,1.18529892,3753.4,3752.9,1.90854554]
[1641233451157,1.18529892,3753.3,3752.9,1.00832518]
[1641233452159,1.54211273,3753.3,3752.9,1.00832518]
[1641233452962,3.632947,3753.6,3752.9,1.00832518]
[1641233453362,0.1503181,3753.5,3752.9,1.00832518]
[1641233454063,1.18307378,3753.0,3752.9,1.00832518]
[1641233454263,1.41306478,3753.0,3752.9,1.00832518]
[1641233455668,2.06555268,3753.0,3752.9,1.00832518]
[1641233456368,0.58671046,3753.0,3752.9,1.00832518]
[1641233457371,2.06555268,3753.0,3752.9,1e-08]
[1641233457569,2.06555268,3753.0,3752.4,2.00479]
[1641233457768,1.5,3752.7,3751.6,1.49967384]
[1641233457969,2.2399,3752.7,3751.6,1.49967384]
[1641233458170,2.00479,3752.1,3751.6,1.49967384]
[1641233458372,0.128157,3752.0,3751.6,1.49967384]
[1641233458572,0.128157,3752.0,3751.7,1.08095506]
[1641233458772,0.229991,3751.9,3751.7,1.08095506]
[1641233458972,1.061391,3751.9,3751.7,1.08095506]
[1641233461776,0.229991,3751.8,3751.7,1.08095506]
[1641233462177,1.18205564,3752.2,3751.7,1.08095506]
[1641233462378,1.18205564,3752.2,3751.7,1.63195506]
[1641233462576,1.18205564,3752.1,3751.7,1.63195506]
[1641233464281,1.18205564,3752.1,3751.7,3.63674506]
[1641233464681,0.128157,3752.2,3751.7,3.63674506]
[1641233466183,0.36560548,3752.1,3751.7,5.1364189]
[1641233466485,1.54766112,3752.1,3751.7,5.1364189]